Cogmind - Beta 14 @@@ ROGUE MODE // 2025.01.02 @ 18:42:02 Player: lazy_engineer Result: Destroyed by P-80 Master with Gamma Rifle Performance ------------- Evolutions (7) 3500 Regions Visited (14) 2800 Robots Destroyed (33) 165 Value Destroyed (475) 475 Prototype IDs (27) 540 Alien Tech Used (0) 0 Bonus (342) 342 TOTAL SCORE: 7822 Bonus ------- Follower Combat Kills 42 Aligned with FarCom 300 Cogmind --------- Core Integrity 0/1300 Matter 7/300 Energy 83/100 System Corruption 15% Temperature Cool (0) Movement Core (350) Ox6 Location -3/Research Parts ------- > --- POWER (3) -------- (None) > --- PROPULSION (6) --- Gyrokinetic Inverter Gyrokinetic Inverter Gyrokinetic Inverter > --- UTILITY (10) ----- Large Storage Unit Advanced Weight Redist. System Structural Scanner Enhanced Optical Array Hacking Suite Hacking Suite Improved Hacking Suite > --- WEAPON (2) ------- (None) > --- INVENTORY (15) --- Antigrav Array Field Propulsion Drive Q-thruster Advanced Power Amplifier Advanced Weight Redist. System Experimental Sensor Array Improved Force Field Component Analysis Suite System Restoration Module Nova Cannon Improved Remote Datajack Peak State ------------ > --- POWER ------------ Improved Fusion Compressor Particle Reactor Compact Particle Reactor > --- PROPULSION ------- Gyrokinetic Inverter Gyrokinetic Inverter Gyrokinetic Inverter Gyrokinetic Inverter Linear Gravjet Improved Linear Gravjet > --- UTILITY ---------- Improved Coolant Injector Large Storage Unit Structural Scanner Triangulator Enhanced Optical Array ECM Suite Hacking Suite Hacking Suite Hacking Suite Improved Hacking Suite > --- WEAPON ----------- Flail > --- INVENTORY -------- Field Propulsion Drive Q-thruster Advanced Power Amplifier Advanced Weight Redist. System Advanced Weight Redist. System Experimental Sensor Array Improved Force Field Component Analysis Suite System Restoration Module Improved Remote Datajack [Rating: 101] Favorites ----------- Power Light Ion Engine Engine Light Ion Engine Power Core Improved Fusion Compressor Reactor Particle Reactor Propulsion Cesium-ion Thruster Treads Light Treads Leg Aluminum Leg Wheel Wheel Hover Unit Gyrokinetic Inverter Flight Unit Cesium-ion Thruster Utility Hacking Suite Device Structural Scanner Storage Medium Storage Unit Processor Enhanced Optical Array Hackware Hacking Suite Weapon Flail Energy Gun EM Pulse Gun Energy Cannon Light EM Pulse Cannon Ballistic Gun Assault Rifle Special Weapon Field Lobotomy Kit Impact Weapon Flail Build | -11 -10 -10 -9 -9 -9 -8 -8 -7 -6 -5 -5 -5 -4 -3 ------- Run | Yrd Mat Min Mat Min Exi Min Mat Fac Fac Fac Upp Upp Fac Res Slots Evolved 14 | . . . 2 . . . 2 2 2 2 . . 2 2 Power 2 | . . . . . . . . . 1 . . . 1 . Propulsion 4 | . . . 2 . . . . . . . . . 1 1 Utility 8 | . . . . . . . 2 2 1 2 . . . 1 Weapon . | . . . . . . . . . . . . . . . Parts Attached 98 | 6 6 4 15 . 3 . 2 5 6 2 4 2 15 28 Power 12 | 1 . . 1 . . . . . . . 1 . 3 6 Engine 6 | 1 . . 1 . . . . . . . 1 . 2 1 Core 1 | . . . . . . . . . . . . . . 1 Reactor 5 | . . . . . . . . . . . . . 1 4 Propulsion 39 | 2 4 4 8 . . . . 1 2 . 1 . 6 11 Treads 6 | 1 . 2 3 . . . . . . . . . . . Leg 6 | . 4 2 . . . . . . . . . . . . Wheel 1 | 1 . . . . . . . . . . . . . . Hover 15 | . . . . . . . . . . . . . 6 9 Flight 11 | . . . 5 . . . . 1 2 . 1 . . 2 Utility 36 | 1 2 . 1 . 2 . 2 3 4 2 2 2 5 10 Device 16 | . . . . . . . 1 1 . . 1 . 3 10 Storage 6 | 1 1 . . . 2 . . . . . . . 2 . Processor 3 | . 1 . . . . . . . 2 . . . . . Hackware 11 | . . . 1 . . . 1 2 2 2 1 2 . . Protection . | . . . . . . . . . . . . . . . Artifact . | . . . . . . . . . . . . . . . Weapon 11 | 2 . . 5 . 1 . . 1 . . . . 1 1 Energy Gun 1 | 1 . . . . . . . . . . . . . . Energy Cannon 2 | . . . 2 . . . . . . . . . . . Ballistic Gun 4 | 1 . . 3 . . . . . . . . . . . Ballistic Cannon . | . . . . . . . . . . . . . . . Launcher . | . . . . . . . . . . . . . . . Special Weapon 1 | . . . . . 1 . . . . . . . . . Impact Weapon 3 | . . . . . . . . 1 . . . . 1 1 Slashing Weapon . | . . . . . . . . . . . . . . . Piercing Weapon . | . . . . . . . . . . . . . . . Special Melee Weapon . | . . . . . . . . . . . . . . . Unidentified Prototypes 4 | . . . . . . . . . . . . . 2 2 Parts Lost 23 | . . . . . . . 1 . 2 . 2 . 1 17 Power 5 | . . . . . . . . . . . . . . 5 Propulsion 11 | . . . . . . . 1 . 2 . 2 . . 6 Utility 6 | . . . . . . . . . . . . . 1 5 Weapon 1 | . . . . . . . . . . . . . . 1 Highest Loss Streak 11 | . . . . . . . 1 . 2 . 1 . 1 11 To Critical Strikes . | . . . . . . . . . . . . . . . Average Slot Usage (%) 87 | . 86 100 88 100 100 100 88 76 72 72 84 68 83 80 Engine 8 | . 14 14 10 11 11 11 9 3 . . 4 . 6 4 Treads 1 | . 2 7 6 . . . . . . . . . . . Leg 6 | . 23 20 5 . . . . . . . . . . . Hover 5 | . . . . . . . . . . . . . 24 24 Flight 16 | . . . 22 44 44 44 35 23 19 17 21 11 . . Device 4 | . . . . . . . 7 7 6 5 9 . 6 13 Storage 9 | . 14 14 11 11 11 11 9 7 6 5 5 5 5 4 Processor 4 | . 1 14 5 . . . . . 6 5 5 5 5 4 Hackware 14 | . . . 5 11 11 11 16 30 25 31 29 39 29 20 Energy Gun 3 | . 14 14 1 . . . . . . . . . . . Energy Cannon 1 | . . . 8 11 . . . . . . . . . . Ballistic Gun 7 | . 14 14 12 11 11 11 8 . . . . . . . Special Weapon 1 | . . . . . 10 11 3 . . . . . . . Impact Weapon 1 | . . . . . . . . 3 6 5 5 5 4 3 Peak Build Rating 101 | 6 9 9 23 23 31 31 35 28 35 41 48 43 81 101 Average Rating 33 | 4 7 9 16 22 30 31 27 26 32 38 44 42 67 80 On Entrance 27 | . 6 9 9 23 23 31 31 20 27 35 41 39 43 76 Naked Turns . | . . . . . . . . . . . . . . . Heaviest Build 63 | 14 19 19 21 20 24 24 26 15 13 13 18 12 50 63 Greatest Support 65 | 10 20 40 40 20 20 20 20 15 15 15 22 12 55 65 Greatest Overweight (x) 7 | 1 1 . 6 . 1 1 1 . 1 . 1 . 1 7 Average Overweight (x) . | . . . . . . 1 . . . . . . . . Largest Inventory Capacity 15 | 8 10 10 10 10 15 10 10 10 10 10 10 10 15 15 Average Capacity 10 | 7 8 10 10 10 10 10 10 10 10 10 10 10 14 15 Most Carried 15 | 8 10 10 10 10 10 10 10 10 10 10 10 10 14 15 Average Carried 9 | 5 8 10 9 9 10 10 8 9 9 9 7 9 10 11 Final Capacity 15 | 8 10 10 10 10 10 10 10 10 10 10 10 10 15 15 Final Carried 13 | 7 10 10 10 10 10 10 10 10 10 9 8 9 13 12 Class Distribution -------------------- 48% | Mutant 19% | Hacker-Sprinter 14% | Hacker-Scout 6% | Sprinter 3% | Wizard-Mutant Dominant Class ---------------- Mutant | -10/Materials Mutant | -10/Mines Mutant | -9/Materials Sprinter | -9/Mines Mutant | -9/Exiles Mutant | -8/Mines Hacker-Sprinter | -8/Materials Hacker-Sprinter | -7/Factory Hacker-Sprinter | -6/Factory Hacker-Sprinter | -5/Factory Hacker-Sprinter | -5/Upper Caves Wizard-Mutant | -5/Upper Caves Hacker-Scout | -4/Factory Hacker-Scout | -3/Research Resources | -11 -10 -10 -9 -9 -9 -8 -8 -7 -6 -5 -5 -5 -4 -3 ----------- Run | Yrd Mat Min Mat Min Exi Min Mat Fac Fac Fac Upp Upp Fac Res Matter Collected 1178 | 394 142 96 148 55 . 30 . . . . 63 39 . 211 Remotely . | . . . . . . . . . . . . . . . Salvage Created 832 | 135 407 115 107 . . . . . 19 . . . . 49 Parts 79 | 9 41 12 10 . . . . . 3 . . . . 4 Haulers Intercepted 1 | . 1 . . . . . . . . . . . . . Recyclers Shooed . | . . . . . . . . . . . . . . . Parts Field Recycled . | . . . . . . . . . . . . . . . Retrieved Matter . | . . . . . . . . . . . . . . . Parts Self-Destructed . | . . . . . . . . . . . . . . . Prevented . | . . . . . . . . . . . . . . . Kills | -11 -10 -10 -9 -9 -9 -8 -8 -7 -6 -5 -5 -5 -4 -3 ------- Run | Yrd Mat Min Mat Min Exi Min Mat Fac Fac Fac Upp Upp Fac Res Combat Hostiles Destroyed 19 | . 8 7 4 . . . . . . . . . . . Guns 17 | . 8 7 2 . . . . . . . . . . . Cannons 2 | . . . 2 . . . . . . . . . . . Classes Destroyed 9 | 3 5 1 . . . . . . . . . . . . Worker 3 | 2 . . 1 . . . . . . . . . . . Tunneler 2 | 1 . . . . . . . . . . . . . 1 Hauler 1 | . 1 . . . . . . . . . . . . . Recycler 1 | 1 . . . . . . . . . . . . . . Operator 4 | . 3 . . . . . . . 1 . . . . . Watcher 4 | . 2 . 1 . . . . . . . . . . 1 Swarmer 14 | . 4 6 4 . . . . . . . . . . . Grunt 4 | . 4 . . . . . . . . . . . . . Assembled 1 | . . 1 . . . . . . . . . . . . Best Kill Streak 4 | 4 3 3 4 . . . . . 1 . . . . 1 Combat Bots Only 4 | . 2 3 4 . . . . . . . . . . . Max Kills in Single Turn 2 | 1 1 2 1 . . . . . 1 . . . . 1 Gunslinging 1 | . . 1 . . . . . . . . . . . . Exploded . | . . . . . . . . . . . . . . . Melee . | . . . . . . . . . . . . . . . Uniques/NPCs Destroyed . | . . . . . . . . . . . . . . . Combat | -11 -10 -10 -9 -9 -9 -8 -8 -7 -6 -5 -5 -5 -4 -3 -------- Run | Yrd Mat Min Mat Min Exi Min Mat Fac Fac Fac Upp Upp Fac Res Hostile Shots Fired 439 | . 64 21 46 2 . 3 22 20 42 . 2 . 3 214 Missed 184 | . 27 10 18 2 . . 13 12 24 . . . 1 77 Damage Taken 4219 | . 327 99 248 . . 27 137 66 259 . 37 . 73 2946 Core 1698 | . 60 21 50 . . 17 59 11 166 . . . . 1314 Absorbed by Shields 18 | . . . . . . . . . . . . . . 18 Regen/Repaired (Parts) 101 | . . . 14 . . . . . . . . . 87 . Core Remaining (%) 89 | 100 . 67 . . . 83 89 98 80 . . 100 100 . Volleys Fired 78 | 12 39 7 12 3 . 3 2 . . . . . . . Largest 2 | 2 2 2 2 1 . 1 1 . . . . . . . Hottest 79 | 60 60 60 79 23 . . . . . . . . . . Shots Fired 145 | 24 78 14 21 3 . 3 2 . . . . . . . Gun 131 | 24 78 14 12 3 . . . . . . . . . . Cannon 9 | . . . 9 . . . . . . . . . . . Launcher . | . . . . . . . . . . . . . . . Special 5 | . . . . . . 3 2 . . . . . . . Kinetic 73 | 12 39 7 12 3 . . . . . . . . . . Thermal . | . . . . . . . . . . . . . . . Explosive . | . . . . . . . . . . . . . . . Electromagnetic 67 | 12 39 7 9 . . . . . . . . . . . Robot Hit Streak 7 | 7 7 4 3 2 . 5 7 . . . . . . . Robot Miss Streak 5 | 2 3 2 5 4 . . . . . . . . . . Penetration Max . | . . . . . . . . . . . . . . . Secondary Targets 2 | . . 2 . . . . . . . . . . . . Max Gunslinging Chain 1 | . . 1 . . . . . . . . . . . . Shots Hit Robots 84 | 14 42 9 8 1 . 3 2 . 3 . . . . 2 Core Hits 39 | 4 20 8 5 . . . . . 1 . . . . 1 Critical Kills 1 | . . . . . . . . . 1 . . . . . Critical Parts Destroyed . | . . . . . . . . . . . . . . . Critical Strikes 2 | . 1 . . . . . . . 1 . . . . . Corrupt 1 | . 1 . . . . . . . . . . . . . Smash 1 | . . . . . . . . . 1 . . . . . Melee Attacks 52 | . . . . . . . . 2 16 . . . 5 29 Impact 52 | . . . . . . . . 2 16 . . . 5 29 Slashing . | . . . . . . . . . . . . . . . Piercing . | . . . . . . . . . . . . . . . Sneak Attacks 2 | . . . . . . . . . 1 . . . . 1 Combat Hostiles . | . . . . . . . . . . . . . . . Follow-up Attacks . | . . . . . . . . . . . . . . . Damage Inflicted 1418 | 200 627 118 161 19 . . . . 139 . . . . 154 Guns 965 | 176 603 118 49 19 . . . . . . . . . . Cannons 112 | . . . 112 . . . . . . . . . . . Explosions 48 | 24 24 . . . . . . . . . . . . . Melee 240 | . . . . . . . . . 139 . . . . 101 Ramming 53 | . . . . . . . . . . . . . . 53 Kinetic 484 | 79 287 50 49 19 . . . . . . . . . . Thermal 48 | 24 24 . . . . . . . . . . . . . Explosive . | . . . . . . . . . . . . . . . Electromagnetic 593 | 97 316 68 112 . . . . . . . . . . . Impact 240 | . . . . . . . . . 139 . . . . 101 Slashing . | . . . . . . . . . . . . . . . Piercing . | . . . . . . . . . . . . . . . Highest Corruption 15 | . . . . . . . . . 2 . . . 4 15 Average Corruption 5 | . . . . . . . . . 1 . . . 4 9 Corruption Purged . | . . . . . . . . . . . . . . . Corruption Blocked . | . . . . . . . . . . . . . . . Effects 7 | . . . . . . . . . . . . . 2 5 Matter Fused 3 | . . . . . . . . . . . . . . 3 Heat Flow Errors 1 | . . . . . . . . . . . . . 1 . Energy Discharges 1 | . . . . . . . . . . . . . . 1 Data Loss (minor) 2 | . . . . . . . . . . . . . 1 1 Overload Shots . | . . . . . . . . . . . . . . . Overflow Damage 41 | . . . 18 . . . . . . . . . . 23 Projectiles 18 | . . . 18 . . . . . . . . . . . Explosions . | . . . . . . . . . . . . . . . Melee 23 | . . . . . . . . . . . . . . 23 Knockbacks 1 | . . . . . . . . . . . . . . 1 Impact 1 | . . . . . . . . . . . . . . 1 Kinetic . | . . . . . . . . . . . . . . . Secondary . | . . . . . . . . . . . . . . . Self-Inflicted Damage 26 | . . . . . . . . . . . . . . 26 Shots . | . . . . . . . . . . . . . . . Rammed 3 | . . . . . . . . . . . . . . 3 Targets Rammed 3 | . . . . . . . . . . . . . . 3 Kicked . | . . . . . . . . . . . . . . . Crushed . | . . . . . . . . . . . . . . . Highest Temperature 536 | . 36 20 33 4 . . 14 . . . . . 404 536 Average Temperature 131 | . 16 17 12 4 . . 5 . . . . . 170 145 Received Heat Transfer 422 | . 48 20 27 . . . 99 24 . . 18 . . 186 Effects 2 | . . . . . . . . . . . . . 2 . Shutdowns 1 | . . . . . . . . . . . . . 1 . Interference 1 | . . . . . . . . . . . . . 1 . Siege Activations . | . . . . . . . . . . . . . . . Robots Corrupted 1 | . . . . . . . . . . . . . . 1 Combat Hostiles . | . . . . . . . . . . . . . . . Parts Fried 4 | . . . 1 . . . . . . . . . . 3 Impact Corruptions 2 | . . . . . . . . . . . . . . 2 Robots Melted . | . . . . . . . . . . . . . . . Combat Hostiles . | . . . . . . . . . . . . . . . Parts Melted . | . . . . . . . . . . . . . . . Heat Transferred 100 | 50 50 . . . . . . . . . . . . . Parts Sabotaged . | . . . . . . . . . . . . . . . Parts Stolen . | . . . . . . . . . . . . . . . Parts Stripped . | . . . . . . . . . . . . . . . Power Chain Reactions 2 | 1 1 . . . . . . . . . . . . . Alert | -11 -10 -10 -9 -9 -9 -8 -8 -7 -6 -5 -5 -5 -4 -3 ------- Run | Yrd Mat Min Mat Min Exi Min Mat Fac Fac Fac Upp Upp Fac Res Peak Influence 308 | 20 308 260 261 176 . 1 23 138 236 42 . . 77 185 Initial 120 | . 13 120 101 101 . . . 5 67 42 . . 32 39 Average 103 | 4 130 206 180 132 . . 3 55 139 42 . . 44 68 Maximum Alert Level 1 | . 1 1 1 . . . . . 1 . . . . . Low Security (%) 84 | 100 76 51 62 100 . 100 100 100 81 100 . . 100 100 Level 1 15 | . 23 48 37 . . . . . 18 . . . . . Level 2 . | . . . . . . . . . . . . . . . Level 3 . | . . . . . . . . . . . . . . . Level 4 . | . . . . . . . . . . . . . . . Level 5 . | . . . . . . . . . . . . . . . High Security . | . . . . . . . . . . . . . . . Max Security . | . . . . . . . . . . . . . . . Squads Dispatched 13 | . 3 . . . . . 2 1 4 . . . . 3 Investigation 6 | . 1 . . . . . 1 1 2 . . . . 1 Extermination 1 | . . . . . . . . . 1 . . . . . Reinforcement 6 | . 2 . . . . . 1 . 1 . . . . 2 Assault . | . . . . . . . . . . . . . . . Garrison . | . . . . . . . . . . . . . . . Intercept . | . . . . . . . . . . . . . . . Searches Triggered . | . . . . . . . . . . . . . . . Construction Impeded . | . . . . . . . . . . . . . . . Haulers Reinforced . | . . . . . . . . . . . . . . . Active Scanning Responses . | . . . . . . . . . . . . . . . Cargo Convoy Interrupts . | . . . . . . . . . . . . . . . Stealth | -11 -10 -10 -9 -9 -9 -8 -8 -7 -6 -5 -5 -5 -4 -3 --------- Run | Yrd Mat Min Mat Min Exi Min Mat Fac Fac Fac Upp Upp Fac Res Distress Signals 6 | . 2 1 1 . . . . . . . . . . 2 Communications Jammed . | . . . . . . . . . . . . . . . Distress Signals . | . . . . . . . . . . . . . . . Times Spotted 134 | . 28 18 9 6 . 3 14 8 11 . 6 . 3 28 Peak Tracking Total 11 | . 5 11 5 4 . 3 9 6 6 . 4 . 3 10 Tactical Retreats 27 | . 3 1 1 3 . . 1 2 3 . 2 . 2 9 Traps | -11 -10 -10 -9 -9 -9 -8 -8 -7 -6 -5 -5 -5 -4 -3 ------- Run | Yrd Mat Min Mat Min Exi Min Mat Fac Fac Fac Upp Upp Fac Res Traps Triggered 8 | . 1 . . . . . . 2 . . . . 1 4 Indirectly . | . . . . . . . . . . . . . . . Trap Hack Attempts . | . . . . . . . . . . . . . . . Triggered . | . . . . . . . . . . . . . . . Disarmed . | . . . . . . . . . . . . . . . Reprogrammed . | . . . . . . . . . . . . . . . Reused . | . . . . . . . . . . . . . . . Traps Extracted . | . . . . . . . . . . . . . . . Installed . | . . . . . . . . . . . . . . . Triggered . | . . . . . . . . . . . . . . . Machines | -11 -10 -10 -9 -9 -9 -8 -8 -7 -6 -5 -5 -5 -4 -3 ---------- Run | Yrd Mat Min Mat Min Exi Min Mat Fac Fac Fac Upp Upp Fac Res Machines Disabled 1 | . 1 . . . . . . . . . . . . . Max in Single Turn 1 | . 1 . . . . . . . . . . . . . Garrison Access 1 | . . . . . . . . . . . . . 1 . Machines Repaired . | . . . . . . . . . . . . . . . Machines Dismantled . | . . . . . . . . . . . . . . . Machines Sabotaged . | . . . . . . . . . . . . . . . Overloaded Fab Kills . | . . . . . . . . . . . . . . . Hacking | -11 -10 -10 -9 -9 -9 -8 -8 -7 -6 -5 -5 -5 -4 -3 --------- Run | Yrd Mat Min Mat Min Exi Min Mat Fac Fac Fac Upp Upp Fac Res Machines Accessed 27 | . 3 . 4 . 1 . 4 5 6 . . . 4 . Terminals 16 | . 3 . 3 . . . 4 2 4 . . . . . Fabricators 3 | . . . . . . . . 1 2 . . . . . Repair Stations 4 | . . . 1 . . . . 1 . . . . 2 . Recycling Units . | . . . . . . . . . . . . . . . Scanalyzers 2 | . . . . . . . . 1 . . . . 1 . Garrison Access 1 | . . . . . . . . . . . . . 1 . Total Hacks 73 | . 8 . 9 . 1 . 13 20 15 . . . 7 . Successful 40 | . 4 . 6 . 1 . 6 11 5 . . . 7 . Failed 33 | . 4 . 3 . . . 7 9 10 . . . . . Catastrophic 7 | . 2 . . . . . . 2 3 . . . . . Database Lockouts . | . . . . . . . . . . . . . . . Manual 35 | . 8 . 4 . 1 . 8 7 7 . . . . . Terminals 44 | . 8 . 7 . . . 13 6 10 . . . . . Fabricators 9 | . . . . . . . . 4 5 . . . . . Repair Stations 8 | . . . 2 . . . . 2 . . . . 4 . Recycling Units . | . . . . . . . . . . . . . . . Scanalyzers 10 | . . . . . . . . 8 . . . . 2 . Garrison Access 1 | . . . . . . . . . . . . . 1 . Terminal Hacks 15 | . 3 . 2 . 1 . 6 . 3 . . . . . Robot Analysis 1 | . . . . . . . 1 . . . . . . . Open DSF 1 | . . . . . . . . . 1 . . . . . Level Access Points 1 | . . . . . . . 1 . . . . . . . Branch Access Points 1 | . . . . . . . 1 . . . . . . . Alert Level 2 | . . . . . . . 2 . . . . . . . Unreport Threat 1 | . . . . . . . . . 1 . . . . . Locate Traps 1 | . . . . . . . 1 . . . . . . . Recall Reinforcements 1 | . 1 . . . . . . . . . . . . . Hauler Manifests 1 | . 1 . . . . . . . . . . . . . Zone Layout 4 | . 1 . 2 . . . . . 1 . . . . . Derelict Proto ID Bank 1 | . . . . . 1 . . . . . . . . . Fabricator Hacks 3 | . . . . . . . . 1 2 . . . . . Load Schematic 2 | . . . . . . . . 1 1 . . . . . Build 1 | . . . . . . . . . 1 . . . . . Repair Station Hacks 7 | . . . 2 . . . . 1 . . . . 4 . Scan Component 3 | . . . 1 . . . . . . . . . 2 . Repair 3 | . . . 1 . . . . . . . . . 2 . Refit 1 | . . . . . . . . 1 . . . . . . Recycling Unit Hacks . | . . . . . . . . . . . . . . . Scanalyzer 10 | . . . . . . . . 8 . . . . 2 . Insert Component 5 | . . . . . . . . 4 . . . . 1 . Analyze 5 | . . . . . . . . 4 . . . . 1 . Garrison Access Hacks 1 | . . . . . . . . . . . . . 1 . Seal Access 1 | . . . . . . . . . . . . . 1 . Unauthorized Hacks 4 | . 1 . 2 . . . . 1 . . . . . . Terminals 3 | . 1 . 2 . . . . . . . . . . . Track 1 | . . . 1 . . . . . . . . . . . Operators 2 | . 1 . 1 . . . . . . . . . . . Fabricators 1 | . . . . . . . . 1 . . . . . . Download 1 | . . . . . . . . 1 . . . . . . Repair Stations . | . . . . . . . . . . . . . . . Recycling Units . | . . . . . . . . . . . . . . . Scanalyzers . | . . . . . . . . . . . . . . . Garrison Access . | . . . . . . . . . . . . . . . Data Cores Recovered 1 | . 1 . . . . . . . . . . . . . Used . | . . . . . . . . . . . . . . . Hacking Detections 23 | . 3 . 3 . . . 4 5 5 . . . 3 . Full Trace Events 2 | . . . . . . . . . 2 . . . . . Feedback Events . | . . . . . . . . . . . . . . . Feedback Blocked . | . . . . . . . . . . . . . . . Robot Schematics Acquired . | . . . . . . . . . . . . . . . Robots Built . | . . . . . . . . . . . . . . . Authchips . | . . . . . . . . . . . . . . . Time . | . . . . . . . . . . . . . . . Total Robot Build Rating . | . . . . . . . . . . . . . . . Part Schematics Acquired 5 | . . . . . . . . 4 . . . . 1 . Parts Built 2 | . . . . . . . . . 2 . . . . . Authchips . | . . . . . . . . . . . . . . . Time 73 | . . . . . . . . . 73 . . . . . Total Part Build Rating 6 | . . . . . . . . . 6 . . . . . Parts Repaired 3 | . . . 1 . . . . . . . . . 2 . Time 67 | . . . 38 . . . . . . . . . 29 . Parts Recycled . | . . . . . . . . . . . . . . . Recycled Matter . | . . . . . . . . . . . . . . . Retrieved Matter . | . . . . . . . . . . . . . . . Retrieved Components . | . . . . . . . . . . . . . . . Parts Scanalyzed 5 | . . . . . . . . 4 . . . . 1 . Part Schematics Acquired 5 | . . . . . . . . 4 . . . . 1 . Parts Damaged . | . . . . . . . . . . . . . . . Bothacking | -11 -10 -10 -9 -9 -9 -8 -8 -7 -6 -5 -5 -5 -4 -3 ------------ Run | Yrd Mat Min Mat Min Exi Min Mat Fac Fac Fac Upp Upp Fac Res Used RIF Installer . | . . . . . . . . . . . . . . . Robots Hacked . | . . . . . . . . . . . . . . . Non-combat . | . . . . . . . . . . . . . . . Combat . | . . . . . . . . . . . . . . . Robot Hacks Applied . | . . . . . . . . . . . . . . . Relay Couplers Released . | . . . . . . . . . . . . . . . Fabnet Peak Effective % . | . . . . . . . . . . . . . . . Robots Rewired . | . . . . . . . . . . . . . . . Allies Hacked . | . . . . . . . . . . . . . . . Hacks Repelled . | . . . . . . . . . . . . . . . Allies | -11 -10 -10 -9 -9 -9 -8 -8 -7 -6 -5 -5 -5 -4 -3 -------- Run | Yrd Mat Min Mat Min Exi Min Mat Fac Fac Fac Upp Upp Fac Res Total Allies 5 | . . . . . . 3 2 . . . . . . . Largest Group 2 | . . . . . . 1 2 . . . . . . . Highest-Rated Group 31 | . . . . . . 5 31 . . . . . . . Highest-Rated Ally 16 | . . . . . . 5 16 . . . . . . . Total Orders 1 | . . . . . . . . . . . . . . 1 EXPLORE 1 | . . . . . . . . . . . . . . 1 Ally Attacks 8 | . . . . . . 3 5 . . . . . . . Total Damage 116 | . . . . . . 23 93 . . . . . . . Kills 2 | . . . . . . 1 1 . . . . . . . Allies Corrupted 2 | . . . . . . . . . . . . . . 2 Allies Melted . | . . . . . . . . . . . . . . . Field Lobotomies 5 | . . . . . . 3 2 . . . . . . . Intel | -11 -10 -10 -9 -9 -9 -8 -8 -7 -6 -5 -5 -5 -4 -3 ------- Run | Yrd Mat Min Mat Min Exi Min Mat Fac Fac Fac Upp Upp Fac Res Robot Analysis Total 1 | . . . . . . . 1 . . . . . . . Derelict Logs Recovered 4 | . . 1 . 1 . . . . . . 2 . . . Drone Launches 2 | . . . . . . . . . . . . . . 2 Drone Recoveries . | . . . . . . . . . . . . . . . Exploration | -11 -10 -10 -9 -9 -9 -8 -8 -7 -6 -5 -5 -5 -4 -3 ------------- Run | Yrd Mat Min Mat Min Exi Min Mat Fac Fac Fac Upp Upp Fac Res Turns Passed 3823 | 145 562 382 273 121 413 170 178 138 329 32 228 51 253 548 Spaces Moved 5126 | 104 352 275 307 425 471 152 287 364 487 100 740 127 241 694 Core 10 | 1 . . 2 . . . . . . . . . . 7 Treads 95 | . . 63 32 . . . . . . . . . . . Legs 521 | . 282 212 27 . . . . . . . . . . . Wheels 173 | 103 70 . . . . . . . . . . . . . Hover 910 | . . . . . . . . . . . . . 223 687 Flight 3417 | . . . 246 425 471 152 287 364 487 100 740 127 18 . Fastest Speed 26 | 50 95 120 26 26 26 106 26 29 29 29 28 37 37 33 Average Speed 55 | 87 115 129 52 26 86 106 39 29 30 29 29 37 56 54 Slowest Speed 400 | 95 120 160 355 26 106 106 106 29 112 29 117 37 110 400 Overloaded Moves . | . . . . . . . . . . . . . . . Propulsion Burnouts . | . . . . . . . . . . . . . . . Robots Hopped 1 | . . . . 1 . . . . . . . . . . Cave-ins Triggered . | . . . . . . . . . . . . . . . Exploration Rate (%) 39 | 5 49 65 33 91 91 54 36 12 23 4 81 14 9 31 Regions Visited 14 Branch Regions 6 Pre-discovered Areas 3 | . . 1 . . . . . . . . 2 . . . Known Exits Taken 2 | . . . 1 . . . 1 . . . . . . . Unknown Exits Taken 12 | 1 1 1 . 1 1 1 . 1 1 1 1 1 1 . Scrap Searched 7 | . . 1 . 2 . 1 . . . . 2 1 . . Spaces Dug 31 | . . . . . . . . 2 11 . . . 4 14 Terrain Destroyed 42 | 5 6 . . . . . . 2 11 . . . 4 14 Melee 31 | . . . . . . . . 2 11 . . . 4 14 Projectile . | . . . . . . . . . . . . . . . AOE 11 | 5 6 . . . . . . . . . . . . . Terrain Rammed . | . . . . . . . . . . . . . . . Walls Destroyed . | . . . . . . . . . . . . . . . Machines Disabled . | . . . . . . . . . . . . . . . Actions | -11 -10 -10 -9 -9 -9 -8 -8 -7 -6 -5 -5 -5 -4 -3 --------- Run | Yrd Mat Min Mat Min Exi Min Mat Fac Fac Fac Upp Upp Fac Res Total 5854 | 132 431 286 401 431 475 154 346 394 644 102 754 131 348 825 Wait 361 | . 25 1 46 1 1 . 53 . 130 . 6 . 67 31 Move 5110 | 103 351 274 306 422 470 151 286 363 486 99 739 126 240 694 Hop 1 | . . . . 1 . . . . . . . . . . Pick Up 75 | 11 5 . 10 2 . . 2 2 2 1 2 1 14 23 Fast Attach 18 | 2 2 . 3 . 1 . . . 5 . . . 4 1 Attach 63 | 4 . . 11 . . . 2 4 1 2 4 2 8 25 Detach 12 | . . . 2 . . . . 2 . . 1 2 1 4 Swap 17 | . 4 4 1 . 2 . . 1 . . . . 3 2 Drop 43 | . 5 . 10 2 1 . 1 2 4 . 2 . 6 10 Fire 78 | 12 39 7 12 3 . 3 2 . . . . . . . Melee 52 | . . . . . . . . 2 16 . . . 5 29 Ram 3 | . . . . . . . . . . . . . . 3 Kick . | . . . . . . . . . . . . . . . Crush . | . . . . . . . . . . . . . . . Escape Stasis 21 | . . . . . . . . 18 . . . . . 3 Rewire . | . . . . . . . . . . . . . . . Trap . | . . . . . . . . . . . . . . . Miscellaneous . | . . . . . . . . . . . . . . . Route ------- -11/Scrapyard -10/Materials (discovered 3 exits: *Mat x2 / [*Min]) -10/Mines -9/Materials (discovered 3 exits: *Mat / *Min / [*Sto]) -9/Mines (discovered 3 exits: *Mat x2 / *Exi) -9/Exiles (discovered 2 exits: [*Min x2]) -8/Mines (discovered 2 exits: *Mat x2) -8/Materials (discovered 3 exits: *Fac x3) -7/Factory (discovered 2 exits: *Fac / [*Low]) -6/Factory -5/Factory -5/Upper Caves -5/Upper Caves -4/Factory -3/Research History --------- Turn | Location | Event 17 | -11/Scrapyard | Discovered new exit (range 16) 146 | -11/Scrapyard | Entered Materials 216 | -10/Materials | Discovered new exit (range 8) 311 | -10/Materials | Build established: Mutant 354 | -10/Materials | Discovered new exit (range 13) 420 | -10/Materials | Discovered new exit (range 15) 708 | -10/Materials | Entered Mines 833 | -10/Mines | Learned location of 1 exit from Materials 856 | -10/Mines | Assembled infested the area 959 | -10/Mines | Learned location of Storage (-9) 1072 | -10/Mines | Discovered new exit (range 5) 1090 | -10/Mines | Entered Materials 1090 | -9/Materials | Evolved 2 slots: Propulsion x2 1091 | -9/Materials | Identified exit to Mines 1250 | -9/Materials | Discovered new exit (range 13) 1274 | -9/Materials | Discovered new exit (range 8) 1356 | -9/Materials | Repaired Cesium-ion Thruster 1363 | -9/Materials | Entered Mines 1400 | -9/Mines | Learned 2 Materials zone layouts 1424 | -9/Mines | Discovered new exit (range 15) 1454 | -9/Mines | Discovered new exit (range 6) 1460 | -9/Mines | Found a damaged Exp. Sensor Array with a note attached 1461 | -9/Mines | Found Prototype Device 1482 | -9/Mines | Deemed a non-threat by the Exiles lab entrance 1483 | -9/Mines | Discovered new exit (range 5) 1484 | -9/Mines | Entered Exiles 1488 | -9/Exiles | Discovered new exit (range 15) 1492 | -9/Exiles | Met 8R-AWN 1495 | -9/Exiles | Met EX-HEX 1503 | -9/Exiles | Met EX-BIN 1506 | -9/Exiles | Aligned with FarCom system 1507 | -9/Exiles | Given EX-Vault access code 1513 | -9/Exiles | Opened EX-Vault 1518 | -9/Exiles | Found Field Lobotomy Kit 1542 | -9/Exiles | Warned to stay clear of 0b10 Research branches 1571 | -9/Exiles | Met EX-DEC 1607 | -9/Exiles | Visited The Gauntlet 1888 | -9/Exiles | Discovered new exit (range 10) 1897 | -9/Exiles | Left Exiles lab with Field Lobotomy Kit 1897 | -9/Exiles | Entered Mines 1897 | -8/Mines | Assimilated S-10 Pest with FLK Orb 1901 | -8/Mines | Assimilated S-10 Pest with FLK Orb 1903 | -8/Mines | Assimilated S-10 Pest with FLK Orb 1944 | -8/Mines | Discovered new exit (range 13) 2059 | -8/Mines | Discovered new exit (range 5) 2067 | -8/Mines | Entered Materials 2067 | -8/Materials | Accompanied by 1 ally 2067 | -8/Materials | Evolved 2 slots: Utility x2 2101 | -8/Materials | Assimilated Y-45 Defender with FLK Orb 2133 | -8/Materials | Assimilated G-47 Trooper with FLK Orb 2198 | -8/Materials | Identified exit to Factory 2245 | -8/Materials | Entered Factory 2245 | -7/Factory | Evolved 2 slots: Utility x2 2337 | -7/Factory | Discovered new exit (range 5) 2376 | -7/Factory | Discovered new exit (range 5) 2383 | -7/Factory | Entered another Factory area 2383 | -6/Factory | Evolved 2 slots: Power x1, Utility x1 2449 | -6/Factory | Build established: Hacker-Sprinter 2527 | -6/Factory | Fabricated Cesium-ion Thruster? 2702 | -6/Factory | Discovered new exit (range 17) 2712 | -6/Factory | Entered another Factory area 2712 | -5/Factory | Evolved 2 slots: Utility x2 2742 | -5/Factory | Discovered new exit (range 9) 2744 | -5/Factory | Entered Upper Caves 2967 | -5/Upper Caves | Learned location of Warlord (-4) 2969 | -5/Upper Caves | Discovered new exit (range 11) 2972 | -5/Upper Caves | Entered another Upper Caves area 2983 | -5/Upper Caves | Discovered new exit (range 6) 2994 | -5/Upper Caves | Spotted B-75 Beast 3023 | -5/Upper Caves | Entered Factory 3023 | -4/Factory | Evolved 2 slots: Power x1, Propulsion x1 3087 | -4/Factory | Repaired ECM Suite 3244 | -4/Factory | Discovered new exit (range 6) 3267 | -4/Factory | Repaired Flail 3276 | -4/Factory | Entered Research 3276 | -3/Research | Evolved 2 slots: Propulsion x1, Utility x1 3497 | -3/Research | Build established: Hacker-Scout 3626 | -3/Research | Lost 5 parts (2p2n1u) 3758 | -3/Research | Core integrity fell below 50% 3764 | -3/Research | System corruption reached 10% 3794 | -3/Research | Core integrity fell below 20% 3822 | -3/Research | Lost 11 parts (3p3n4u1w) 3824 | -3/Research | Destroyed by P-80 Master with Gamma Rifle Last Messages --------------- 03755_ A bubble of rippling energy engulfs the area. 03755_ Field strength at 79. 03755_ Field strength at 46. 03756_ Field strength at 25. 03757_ Field strength at 4. 03757_ Stasis field depleted. 03760_ Imp. Fusion Compressor destroyed. 03769_ Flail destroyed. 03774_ Triangulator destroyed. 03777_ Hacking Suite destroyed. 03781_ System corrupted: Matter fused (-8). 03781_ Gyrokinetic Inverter destroyed. 03781_ Acquired Lgt. Antimatter Reactor. 03787_ Magnetic Photon System disabled. 03788_ Acquired Antigrav Array. 03790_ Lgt. Antimatter Reactor destroyed. 03791_ Imp. Coolant Injector destroyed. 03802_ System corrupted: Energy discharge (-13). 03820_ System corrupted: Matter fused (-10). 03821_ Acquired Nova Cannon. Map ----- +----------------------------------------------------+ | ###########+###############??????????????? | | ###### ! #########??????????????? | | ##??## ##?????????????????????? | | ###### ##?????????????????????? | | ###### ##?????????????????????? | | / ##?????????????????????? | | ###### ##?????????????????????? | | # ###### ##?????????????????????? | | # # # ##?????????????????????? | | #^# # ##?????????????????????? | | # # [ # ##?????????????????????? | | # # #! ##?????????????????????? | | / # ##?????????????????????? | | # # ###############?????????????????????? | | # # ###############?????????????????????? | | # + ##??????????????????????????????????? | | ### #############???????????????????????? | | ####################???????????????????????? | | ?##### ##???????????????????????? | | ????## ##########???????????????? | | ????## ### #???????????????? | | ##?## "" ### #???????????????? | | ##### """""# /p #???????????????? | | ##### """""# # ! #???????????????? | | + """""# # p #???????????????? | | ###### """"# # = @ #???????????????? | | ????## """""# ###############????????? | | ????## """ # ##] #????????? | | ????## ! # ## #????????? | | ????## = # ## #????????? | | ????########+####g# ## #????????? | | ???####### + #????????? | | ?+ # #????????? | | ?######### + [#????????? | | ?????????# # #????????? | | ?????????# ###### # #????????? | | ?????????# ?????# # #????????? | | ?????????# ??????# # #????????? | | ?????????# ???????# # #????????? | | ?????????# ???????# ##############????????? | | ?????????# ????????#+#?????????????????????? | | ?????????+?????????????????????????????????? | | ???????????????????????????????????????????? | | ???????????????????????????????????????????? | | ???????????????????????????????????????????? | | ???????????????????????????????????????????? | | ???????????????????????????????????????????? | | ???????????????????????????????????????????? | | ???????????????????????????????????????????? | | ???????????????????????????????????????????? | +----------------------------------------------------+ Best States ------------- Heat Dissipation 46 Coolant Potential 80 Energy Generation 39 Energy Capacity 395 Matter Stores 300 Matter Capacity 300 Sight Range 22 Terrain Scan Density 10 ECM Strength 1 Power Amplification 30 Additional Mass Support 9 Evasion (%) 64 Targeting Accuracy 6 Recoil Reduction 2 Offensive Hacking 62 Defensive Hacking 20 Item Schematics ----------------- Cesium-ion Thruster | -7/Factory | Scanalyzed Datajack | -7/Factory | Scanalyzed System Shield | -7/Factory | Scanalyzed Structural Scanner | -7/Factory | Scanalyzed Gyrokinetic Inverter | -4/Factory | Scanalyzed Robot Schematics ------------------ None Fabricated ------------ Cesium-ion Thruster | x2 | -6/Factory Alien Tech Used ----------------- None Achievements -------------- Deadly Force Just What I Needed Leap Before You Look Challenges ------------ None Game ------ Seed SwarmAutogunChainsaw Manual? 0 Play Time 01:16:40 Cumulative 49.6 hours Start 2025.01.02 @ 17:22:33 End 2025.01.02 @ 18:42:02 Sessions 1 Manual Loads 0 Difficulty Rogue Special Mode None Game No. 103 Rogue 103 Adventurer 0 Explorer 0 Win Type - Total 0 Types 0/0/0/0/0/0/0/0/0 Lore% 18 Gallery% 32 Achievement% 29 Wizard Run 0 Options --------- Layout 0 ASCII 0 Keyboard 0 Movement Mouse Keybinds 0 Fullscreen 1 Font 24/Smallcaps Map View 76x50 Zoom Use 0% Tactical HUD 1 Map Filters NONE Filters NONE Steam 1 RUN: a6b2ada2-9545-4c51-94cd-4e94be100d71